fUST/lending_fUST_20250504
["ID","MTS","AMOUNT","RATE_DAILY","PERIOD"]
[359773261,1746323408882,-151.0,0.0003399,14]
[359773262,1746323408905,-421.46778412,0.00033999,7]
[359773263,1746323408928,-496.28907126,0.00033999,7]
[359773264,1746323408951,-500.0,0.00033999,7]
[359773265,1746323408975,-500.0,0.00033999,7]
[359773266,1746323409000,-581.2287024,0.00033999,7]
[359773267,1746323409024,-369.43285599,0.00033999,7]
[359773268,1746323409049,-178.57110022,0.00033999,7]
[359773269,1746323409084,-500.0,0.00033999,7]
[359773270,1746323409120,-500.0,0.00033999,7]
[359773271,1746323409156,-500.0,0.00033999,7]
[359773272,1746323409190,-159.1939178,0.00033999,7]
[359773273,1746323409213,-29754.38394405,0.00034,2]
[359773274,1746323413763,150.113,0.00027814,2]
[359773326,1746323432127,-223.0,0.0003289,2]
[359773329,1746323432137,-258.84569023,0.00033889,2]
[359773466,1746323438065,-241.15430977,0.00033889,2]
[359773467,1746323438077,-54513.61605595,0.00034,2]
[359773468,1746323438086,-2000.0,0.00034,10]
[359773469,1746323438096,-281.870955,0.00034,14]
[359773470,1746323438106,-151.0,0.00034,12]
[359773471,1746323438116,-151.0,0.00034,10]
[359773472,1746323438126,-151.0,0.00034,14]
[359773473,1746323438135,-302.72132018,0.00034,2]
[359773474,1746323438144,-151.0,0.00034,14]
[359773475,1746323438154,-267.801164,0.00034,14]
[359773476,1746323438164,-151.0,0.00034,14]
[359773477,1746323438174,-200.523154,0.00034,14]
[359773478,1746323438183,-444.716626,0.00034,2]
[359773479,1746323438192,-200.523154,0.00034,14]
[359773480,1746323438204,-444.716626,0.00034,2]
[359773481,1746323438216,-500.0,0.00034163,2]
[359773482,1746323438227,-500.0,0.00034163,2]
[359773483,1746323438238,-160.0,0.0003418,5]
[359773484,1746323438247,-276.42498352,0.0003418,5]
[359773485,1746323438257,-13090.49440856,0.000342,3]
[359773486,1746323438267,-1805.86,0.000342,30]
[359773487,1746323438276,-32369.3,0.000343,30]
[359773488,1746323438288,-151.0,0.000343,14]
[359773489,1746323438297,-166.26625,0.000343,14]
[359773490,1746323438307,-200.523154,0.000343,14]
[359773491,1746323438316,-444.716626,0.000343,2]
[359773492,1746323438325,-444.716626,0.000343,2]
[359773493,1746323438334,-200.523154,0.000343,14]
[359773494,1746323438343,-500.0,0.00034437,2]
[359773495,1746323438352,-500.0,0.00034437,2]
[359773496,1746323438361,-1100.0,0.00034509,60]
[359773497,1746323438372,-204.6621392,0.000347,31]
[359773498,1746323438381,-500.0,0.00034711,2]
[359773499,1746323438390,-565.03735354,0.00034711,2]
[359773500,1746323438400,-195.92765418,0.00034826,2]
[359773501,1746323438409,-600.35904132,0.00034849,120]
[359773502,1746323438418,-500.0,0.00034985,2]
[359773503,1746323438427,-11000.0,0.00035,3]
[359773504,1746323438436,-256.9545,0.00035,5]
[359773505,1746323438445,-256.9545,0.00035,5]
[359773506,1746323438454,-290.256601,0.00035,14]
[359773507,1746323438463,-2415.59,0.00035,7]
[359773508,1746323438472,-1000.0,0.00035,120]
[359773509,1746323438482,-200.523154,0.00035,14]
[359773510,1746323438491,-444.716626,0.00035,2]
[359773511,1746323438501,-444.716626,0.00035,2]
[359773512,1746323438510,-200.523154,0.00035,14]
[359773513,1746323438519,-257.4565,0.00035,5]
[359773514,1746323438529,-257.4565,0.00035,5]
[359773515,1746323438538,-2000.0,0.00035,15]
[359773516,1746323438547,-1100.0,0.00035057,60]
[359773517,1746323438556,-14231.22,0.000351,30]
[359773518,1746323438566,-200.523154,0.000351,14]
[359773519,1746323438575,-444.716626,0.000351,2]
[359773520,1746323438584,-444.716626,0.000351,2]
[359773521,1746323438594,-200.523154,0.000351,14]
[359773522,1746323438603,-204.6621392,0.0003522,32]
[359773523,1746323438613,-500.0,0.00035259,2]
[359773524,1746323438622,-251.42944195,0.00035287,2]
[359773525,1746323438631,-500.0,0.00035533,2]
[359773526,1746323438641,-1100.0,0.00035605,60]
[359773527,1746323438650,-185.36797097,0.00035616,60]
[359773528,1746323438660,-204.6621392,0.0003574,33]
[359773529,1746323438669,-500.0,0.00035807,2]
[359773530,1746323438679,-195.92765418,0.00035909,2]
[359773531,1746323438688,-3000.0,0.00036,20]
[359773532,1746323438698,-500.0,0.00036081,2]
[359773533,1746323438707,-1100.0,0.00036153,60]
[359773534,1746323438716,-206.57326293,0.000362,120]
[359773535,1746323438726,-206.57326292,0.000362,120]
[359773536,1746323438735,-206.57326292,0.000362,120]
[359773537,1746323438744,-204.6621392,0.0003626,34]
[359773538,1746323438753,-500.0,0.00036355,2]
[359773539,1746323438762,-724.0345856,0.00036384,30]
[359773540,1746323438772,-206.57326292,0.00036452,120]
[359773541,1746323438782,-500.0,0.00036629,2]
[359773542,1746323438791,-1100.0,0.00036701,60]
[359773543,1746323438800,-204.6621392,0.0003678,35]
[359773544,1746323438808,-314.8113905,0.00036795,30]
[359773545,1746323438818,-163.4214071,0.00036795,30]
[359773546,1746323438827,-153.0,0.00036795,30]
[359773547,1746323438836,-153.0,0.00036795,30]
[359773548,1746323438845,-153.0,0.00036795,30]
[359773549,1746323438854,-210.69445622,0.00036903,2]
[359773550,1746323438863,-195.92765418,0.00036991,2]
[359773551,1746323438873,-3000.0,0.00037,25]
[359773552,1746323438882,-1100.0,0.00037249,60]
[359773553,1746323438891,-444.716626,0.00037249,2]
[359773554,1746323438901,-444.716626,0.00037249,2]
[359773555,1746323438910,-200.523154,0.0003726,14]
[359773556,1746323438919,-200.523154,0.0003726,14]
[359773557,1746323438928,-163.0,0.0003726,5]
[359773558,1746323438937,-204.6621392,0.000373,36]
[359773559,1746323438946,-32369.3,0.000373,30]
[359773560,1746323438956,-1805.86,0.000373,30]
[359773561,1746323438966,-2415.59,0.000373,7]
[359773562,1746323438975,-200.523154,0.000373,14]
[359773563,1746323438984,-444.716626,0.000373,2]
[359773564,1746323438995,-444.716618,0.000373,2]
[359773565,1746323439006,-200.523155,0.000373,14]
[359773566,1746323439015,-1645.2798671,0.00037343,4]
[359773567,1746323439025,-200.0,0.00037374,120]
[359773568,1746323439036,-200.0,0.00037423,120]
[359773569,1746323439045,-14231.22,0.000375,30]
[359773570,1746323439056,-269.0212561,0.00037616,30]
[359773571,1746323439066,-1008.56178754,0.000378,2]
[359773572,1746323439078,-204.6621392,0.0003782,37]
[359773573,1746323439088,-600.0,0.00037823,2]
[359773574,1746323439098,-9453.49412894,0.0003799,2]
[359773575,1746323439108,-3000.0,0.00038,30]
[359773576,1746323439118,-400.0,0.00038,14]
[359773577,1746323439128,-1000.0,0.00038,120]
[359773578,1746323439138,-195.92765418,0.00038074,2]
[359773579,1746323439147,-600.0,0.00038217,2]
[359773580,1746323439157,-362.2865337,0.00038301,30]
[359773581,1746323439166,-362.2865337,0.00038301,30]
[359773582,1746323439175,-261.8431583,0.00038301,30]
[359773583,1746323439184,-1100.0,0.00038345,60]
[359773584,1746323439194,-1000.0,0.00038352,5]
[359773585,1746323439203,-1000.0,0.00038352,5]
[359773586,1746323439212,-300.0,0.00038356,30]
[359773587,1746323439222,-300.0,0.00038356,30]
[359773588,1746323439231,-300.0,0.00038356,30]
[359773589,1746323439241,-300.0,0.00038356,30]
[359773590,1746323439250,-300.0,0.00038356,30]
[359773591,1746323439259,-300.0,0.00038356,30]
[359773592,1746323439278,-300.0,0.00038356,30]
[359773593,1746323439290,-300.0,0.00038356,30]
[359773594,1746323439299,-300.0,0.00038356,30]
[359773595,1746323439309,-300.0,0.00038356,30]
[359773596,1746323439319,-300.0,0.00038356,30]
[359773597,1746323439328,-300.0,0.00038356,30]
[359773598,1746323439338,-234.10756755,0.00038356,30]
[359773599,1746323439347,-400.0,0.00038356,2]
[359773600,1746323439356,-400.0,0.00038356,2]
[359773601,1746323439366,-400.0,0.00038356,2]
[359773602,1746323439376,-400.0,0.00038356,2]
[359773603,1746323439385,-400.0,0.00038356,2]
[359773604,1746323439395,-400.0,0.00038356,2]
[359773605,1746323439405,-400.0,0.00038356,2]
[359773606,1746323439414,-400.0,0.00038356,2]
[359773607,1746323439424,-400.0,0.00038356,2]
[359773608,1746323439434,-400.0,0.00038356,2]
[359773609,1746323439445,-400.0,0.00038356,2]
[359773610,1746323439455,-400.0,0.00038356,2]
[359773611,1746323439465,-400.0,0.00038356,2]
[359773612,1746323439475,-362.83823762,0.00038356,2]
[359773614,1746323439484,-151.0,0.00038356,2]
[359773616,1746323439493,-888.50992616,0.00038364,120]
[359773618,1746323439503,-200.0,0.00038401,120]
[359773620,1746323439512,-151.0,0.00038411,2]
[359773622,1746323439522,-151.0,0.00038466,2]
[359773624,1746323439531,-204.90725105,0.00038521,2]
[359773625,1746323439541,-165.45,0.0003853,11]
[359773626,1746323439551,-200.0,0.0003861,120]
[359773627,1746323439560,-717.91449451,0.00038611,2]
[359773628,1746323439569,-1564.32669832,0.0003866,15]
[359773629,1746323439579,-30016.88400018,0.000387,30]
[359773630,1746323439588,-305.0,0.0003883,50]
[359773631,1746323439597,-1470.628414,0.00038933,2]
[359773632,1746323439607,-636.36,0.00038982,120]
[359773633,1746323439617,-3000.0,0.00039,40]
[359773634,1746323439626,-15906.54719437,0.00039,30]
[359773635,1746323439635,-1397.30070218,0.00039,120]
[359773637,1746323439645,-2415.59,0.00039,7]
[359773638,1746323439656,-182.16284668,0.00039,120]
[359773639,1746323439665,-313.6679601,0.00039,120]
[359773640,1746323439674,-29032.72722904,0.000391,30]
[359773647,1746323439849,-3336.57277096,0.000391,30]
[359773649,1746323439859,-1069.93079453,0.00039156,120]
[359773651,1746323439869,-206.57326292,0.00039156,120]
[359773653,1746323439879,-195.92765418,0.00039156,2]
[359773656,1746323439888,-636.36,0.00039182,120]
[359773658,1746323439898,-4208.54025963,0.000392,60]
[359773660,1746323439915,-1187.22105497,0.000392,60]
[359773669,1746323439982,-1240.69016177,0.000392,60]
[359773919,1746323443384,-2682.19253172,0.000392,60]
[359773920,1746323443393,-14231.22,0.000392,30]
[359773921,1746323443403,-200.0,0.00039221,120]
[359773922,1746323443412,-297751.2597619,0.0003924,30]
[359773923,1746323443421,-1137.49,0.00039244,30]
[359773924,1746323443430,-2271.59126983,0.0003925,2]
[359773925,1746323443439,-818969.05754369,0.00039256,20]
[359773926,1746323443449,-1906769.64538884,0.00039256,20]
[359773927,1746323443458,-1497.98801591,0.00039256,2]
[359773928,1746323443467,-212302.4051284,0.00039256,20]
[359773929,1746323443480,-344.95327808,0.00039256,20]
[359773950,1746323446074,-190.0,0.000392,2]
[359773951,1746323446085,-135.62562805,0.00039256,20]
[359773952,1746323446177,-947.67,0.00039256,20]
[359773953,1746323446188,-10726.11002876,0.00039256,20]
[359773955,1746323454784,403.0,0.00028571,2]
[359773964,1746323515138,150.164,0.00028571,2]
[359773965,1746323539971,246.15046518,0.00030693,2]
[359774016,1746324343159,-194.07452912,0.00025105,2]
[359774017,1746324343180,-108.48648307,0.00025204,2]
[359774021,1746324429086,-194.07452911,0.00025105,2]
[359774022,1746324429110,-34.76174822,0.00025204,2]
[359774023,1746324437086,-1056.75176871,0.00025204,2]
[359774024,1746324437107,-500.0,0.00025205,2]
[359774025,1746324437126,-500.0,0.00025205,2]
[359774026,1746324437145,-500.0,0.00025205,2]
[359774027,1746324437165,-500.0,0.00025205,2]
[359774028,1746324437186,-300.0,0.00026571,2]
[359774029,1746324437205,-300.0,0.00026572,2]
[359774030,1746324437226,-254.0,0.00026573,2]
[359774031,1746324437245,-1400.034152,0.00027397,2]
[359774032,1746324437265,-768.30910546,0.00027422,2]
[359774033,1746324441117,-2064.64652097,0.00027422,2]
[359774034,1746324441138,-1680.0,0.00027422,2]
[359774035,1746324441158,-10072.79927601,0.00027481,2]
[359774041,1746324545110,-232.20597099,0.00027481,2]
[359774042,1746324545132,-422.66737559,0.00027999,2]
[359774043,1746324545153,-400.0,0.00027999,2]
[359774044,1746324545174,-300.0,0.00027999,2]
[359774045,1746324545193,-313.73916419,0.00028,10]
[359774046,1746324545214,-5681.59630786,0.00028,30]
[359774047,1746324549103,-8976.40369214,0.00028,30]
[359774048,1746324549125,-400.0,0.00028273,2]
[359774049,1746324549144,-502.16343506,0.00028329,5]
[359774050,1746324549165,-400.0,0.00028547,2]
[359774051,1746324549184,-400.0,0.0002857,2]
[359774052,1746324549204,-493.44668751,0.0002857,2]
[359774053,1746324549224,-173.057,0.00028571,2]
[359774054,1746324549244,-546.898,0.00028571,2]
[359774055,1746324549263,-707.0,0.00028571,2]
[359774056,1746324549283,-403.0,0.00028571,2]
[359774057,1746324549301,-420.0,0.0002874,2]
[359774058,1746324549323,-426.66103517,0.00028821,2]
[359774059,1746324549344,-400.0,0.00028844,2]
[359774060,1746324549366,-181.414571,0.00028958,2]
[359774061,1746324549385,-461.44205927,0.00028991,2]
[359774062,1746324549408,-400.0,0.00029118,2]
[359774063,1746324549429,-228.46332216,0.00029291,2]
[359774064,1746324549453,-500.0,0.00029391,2]
[359774065,1746324549479,-500.0,0.00029391,2]
[359774066,1746324549498,-485.4542971,0.00029391,2]
[359774067,1746324549519,-500.0,0.00029391,2]
[359774068,1746324549542,-500.0,0.00029391,2]
[359774069,1746324549564,-473.39988775,0.00029391,2]
[359774070,1746324549603,-500.0,0.00029391,2]
[359774071,1746324549635,-500.0,0.00029391,2]
[359774072,1746324549657,-166.32494575,0.00029391,2]
[359774073,1746324549680,-500.0,0.00029391,2]
[359774074,1746324549710,-500.0,0.00029391,2]
[359774075,1746324549738,-96.32135058,0.00029391,2]
[359774076,1746324550125,-403.67864942,0.00029391,2]
[359774077,1746324550151,-500.0,0.00029391,2]
[359774078,1746324550177,-500.0,0.00029391,2]
[359774079,1746324550204,-500.0,0.00029391,2]
[359774080,1746324550231,-500.0,0.00029391,2]
[359774081,1746324550257,-500.0,0.00029391,2]
[359774082,1746324550284,-500.0,0.00029391,2]
[359774083,1746324550309,-133.61198987,0.00029391,2]
[359774084,1746324567081,-21.49553536,0.00029391,2]
[359774085,1746324567108,-500.0,0.00029391,2]
[359774086,1746324567133,-500.0,0.00029391,2]
[359774087,1746324567158,-500.0,0.00029391,2]
[359774088,1746324567184,-500.0,0.00029391,2]
[359774089,1746324567211,-500.0,0.00029391,2]
[359774090,1746324567235,-400.0,0.00029392,2]
[359774091,1746324567256,-1200.0,0.00029835,2]
[359774092,1746324567281,-417.2572742,0.00029972,2]
[359774093,1746324567301,-419.43194096,0.00029972,2]
[359774094,1746324567321,-189.0,0.0003,120]
[359774095,1746324567342,-420.0,0.00030239,2]
[359774096,1746324567362,-164.43344948,0.00030626,2]
[359774097,1746324572092,-257.233673,0.00030626,2]
[359774119,1746324632087,-1000.0,0.00030693,2]
[359774120,1746324632097,-200.10273015,0.00030693,2]
[359774121,1746324632106,-228.46332214,0.00030695,2]
[359774122,1746324632116,-403.0,0.00031571,2]
[359774123,1746324632126,-228.46332214,0.00032099,2]
[359774124,1746324632136,-325.02572522,0.00032656,2]
[359774125,1746324632146,-1400.034152,0.00033165,2]
[359774126,1746324632155,-228.46332214,0.00033503,2]
[359774127,1746324632165,-403.0,0.00034571,2]
[359774128,1746324632175,-228.46332214,0.00034908,2]
[359774129,1746324632184,-180.0,0.00035067,2]
[359774130,1746324632193,-400.0,0.00035067,3]
[359774131,1746324632203,-250.88732826,0.00035068,3]
[359774132,1746324632214,-363.0523984,0.00035605,60]
[359774133,1746324632226,-236.9476016,0.00035605,60]
[359774134,1746324632235,-165.16236544,0.00035829,43]
[359774135,1746324632244,-600.0,0.00036153,60]
[359774136,1746324632253,-228.46332214,0.00036312,2]
[359774137,1746324632262,-600.0,0.00036701,60]
[359774138,1746324632272,-160.0,0.00037098,2]
[359774140,1746324632282,-182.16284668,0.00037118,2]
[359774141,1746324632291,-600.0,0.00037249,60]
[359774142,1746324632300,-380.0,0.00037292,2]
[359774143,1746324632310,-509.56601271,0.00037292,2]
[359774144,1746324632319,-131.56964526,0.00037292,2]
[359774145,1746324632330,-290.22043546,0.00037292,2]
[359774146,1746324632339,-434.9245942,0.00037292,2]
[359774147,1746324632348,-295.25653371,0.00037292,2]
[359774148,1746324632358,-412.11654485,0.00037292,2]
[359774149,1746324632367,-415.9769394,0.00037292,2]
[359774150,1746324632376,-421.63799689,0.00037292,2]
[359774151,1746324632385,-434.89580687,0.00037292,2]
[359774152,1746324632394,-1341.4822594,0.00037293,4]
[359774153,1746324632403,-160.0,0.00037444,2]
[359774154,1746324632412,-403.0,0.00037571,2]
[359774155,1746324632421,-228.46332214,0.00037716,2]
[359774156,1746324632430,-600.0,0.00037797,60]
[359774157,1746324632442,-165.46,0.00038,10]
[359774158,1746324632451,-3846.32322,0.00038,120]
[359774159,1746324632463,-359.93669433,0.00038,120]
[359774160,1746324632474,-354.33070395,0.00038,120]
[359774161,1746324632486,-533.04968369,0.00038,120]
[359774187,1746324638118,-3368.60463169,0.00038,120]
[359774194,1746324638172,-4892.75506634,0.00038,120]
[359774196,1746324638181,-362.0172928,0.00038301,30]
[359774198,1746324638190,-600.0,0.00038345,60]
[359774200,1746324638200,-500.0,0.00038355,15]
[359774202,1746324638209,-406.12305836,0.00038355,15]
[359774207,1746324638227,-1737.32,0.00038356,15]
[359774211,1746324638238,-1536.64785962,0.00038356,15]
[359774215,1746324638251,-200.67214038,0.00038356,15]
[359774217,1746324638261,-1737.32,0.00038356,15]
[359774219,1746324638270,-460.76727429,0.00038356,15]
[359774221,1746324638281,-267.3,0.000385,11]
[359774223,1746324638291,-500.0,0.00038521,2]
[359774225,1746324638300,-500.0,0.00038795,2]
[359774227,1746324638310,-364.98,0.000388,120]
[359774229,1746324638319,-1400.034152,0.00038933,2]
[359774231,1746324638329,-155.0,0.00038999,7]
[359774234,1746324638339,-1737.32,0.00038999,15]
[359774236,1746324638348,-5010.79712691,0.00039,120]
[359774238,1746324638358,-500.0,0.00039069,2]
[359774240,1746324638367,-356.4229109,0.000391,2]
[359774242,1746324638377,-356.42291089,0.00039105,2]
[359774244,1746324638386,-356.42291089,0.0003911,2]
[359774246,1746324638397,-356.42291089,0.00039115,2]
[359774248,1746324638406,-330.12219728,0.00039116,7]
[359774250,1746324638415,-268.69910577,0.00039117,2]
[359774252,1746324638427,-11145.05647952,0.00039117,2]
[359774254,1746324638441,-9131.34073904,0.00039117,2]
[359774257,1746324638453,-21169.94737567,0.00039117,2]
[359774259,1746324638463,-1917.16395872,0.00039118,2]
[359774261,1746324638472,-356.42291089,0.0003912,2]
[359774263,1746324638481,-228.46332214,0.0003912,2]
[359774265,1746324638491,-1993.37125971,0.000392,60]
[359774267,1746324638502,-2994.87652079,0.000392,60]
[359774376,1746324640368,-5011.7522195,0.000392,60]
[359774378,1746324640377,-160.0,0.000392,59]
[359774381,1746324640387,-150.0,0.000392,120]
[359774383,1746324640397,-1737.32,0.00039209,15]
[359774385,1746324640406,-1737.32,0.00039209,15]
[359774387,1746324640415,-1737.32,0.00039209,15]
[359774389,1746324640425,-1737.32,0.00039209,15]
[359774391,1746324640435,-1737.32,0.00039209,15]
[359774393,1746324640448,-1737.32,0.00039209,15]
[359774395,1746324640457,-1737.32,0.00039209,15]
[359774397,1746324640467,-1737.32,0.00039209,15]
[359774399,1746324640477,-841.6056368,0.00039209,3]
[359774401,1746324640486,-222.68,0.0003921,3]
[359774403,1746324640495,-1737.32,0.00039219,15]
[359774405,1746324640504,-1737.32,0.00039219,15]
[359774407,1746324640514,-1737.32,0.00039219,15]
[359774409,1746324640524,-336.34978402,0.00039219,15]
[359774642,1746324644698,-1400.97021598,0.00039219,15]
[359774643,1746324644707,-1737.32,0.00039219,15]
[359774644,1746324644716,-1737.32,0.00039219,15]
[359774645,1746324644725,-1737.32,0.00039219,15]
[359774646,1746324644734,-1737.32,0.00039219,15]
[359774647,1746324644743,-1737.32,0.00039219,15]
[359774648,1746324644752,-1737.32,0.00039219,15]
[359774649,1746324644761,-1737.32,0.00039219,15]
[359774650,1746324644770,-1737.33840818,0.00039219,15]
[359774651,1746324644779,-420.28946081,0.00039219,15]
[359774652,1746324644789,-254.34463393,0.00039219,15]
[359774653,1746324644798,-500.0,0.00039219,7]
[359774654,1746324644807,-270.28512698,0.00039219,7]
[359774655,1746324644816,-259.75837485,0.00039219,3]
[359774656,1746324644826,-9959.30653764,0.0003922,2]
[359774657,1746324644835,-10962.47712032,0.0003922,3]
[359774658,1746324644845,-291062.47292418,0.0003922,20]
[359774659,1746324644854,-6762.31963364,0.0003922,5]
[359774660,1746324644863,-164913.3787724,0.0003922,20]
[359774661,1746324644882,-90733.84149546,0.0003922,2]
[359774662,1746324644892,-300.0,0.0003922,2]
[359774663,1746324644903,-3859.66467193,0.0003922,2]
[359774664,1746324644913,-805.32976532,0.0003922,2]
[359774665,1746324644922,-253.41351384,0.0003922,2]
[359774666,1746324644932,-295.27422153,0.0003922,2]
[359774667,1746324644941,-817.83756873,0.0003922,2]
[359774668,1746324644951,-325.24238347,0.0003922,2]
[359774669,1746324644960,-1202.92070454,0.0003922,2]
[359774670,1746324644970,-290.2710673,0.0003922,2]
[359774671,1746324644980,-51446.72982728,0.0003922,2]
[359774672,1746324644990,-633.79478126,0.0003922,2]
[359774673,1746324645000,-155.77280868,0.0003922,2]
[359774674,1746324645009,-10250.17225503,0.0003922,2]
[359774675,1746324645020,-3027.37026543,0.0003922,2]
[359774676,1746324645030,-6258.59950052,0.0003922,2]
[359774677,1746324645039,-156.78706796,0.0003922,2]
[359774678,1746324645050,-523.97895539,0.0003922,2]
[359774679,1746324645060,-443.90460943,0.0003922,2]
[359774680,1746324645070,-1859.43886683,0.0003922,2]
[359774681,1746324645081,-13705.45130777,0.0003922,2]
[359774682,1746324645091,-504.85309713,0.0003922,2]
[359774683,1746324645101,-178.19136669,0.0003922,2]
[359774684,1746324645112,-465.53042033,0.0003922,2]
[359774685,1746324645124,-1865.2695351,0.0003922,2]
[359774686,1746324645134,-30287.13841866,0.0003922,2]
[359774687,1746324645145,-188.17269924,0.0003922,2]
[359774688,1746324645155,-301.52629799,0.0003922,2]
[359774689,1746324645164,-1389.13885998,0.0003922,2]
[359774690,1746324645174,-583.57548014,0.0003922,2]
[359774691,1746324645183,-5862.53344395,0.0003922,2]
[359774692,1746324645193,-647.70036715,0.0003922,2]
[359774693,1746324645202,-2920.0,0.0003922,2]
[359774694,1746324645211,-1494.06628807,0.0003922,2]
[359774695,1746324645221,-10017.13011719,0.0003922,2]
[359774696,1746324645230,-20042.97419294,0.0003922,2]
[359774697,1746324645240,-146072.8127261,0.0003922,20]
[359774698,1746324645249,-437146.44964947,0.0003922,20]
[359774699,1746324645259,-98574.88803877,0.0003922,2]
[359774700,1746324645269,-734308.24781859,0.0003922,20]
[359774701,1746324645282,-958.03760602,0.0003922,20]
[359774702,1746324645294,-3128.97735267,0.0003922,20]
[359774703,1746324645347,-33.61789024,0.0003922,20]
[359774718,1746324650403,403.0,0.00030003,2]
[359774721,1746324707099,1000.0,0.00027381,2]
[359774722,1746324727845,500.0,0.00027397,5]
[359774723,1746324729986,159.4635,0.0003,2]
[359774788,1746325553160,-494.92965489,0.000248,2]
[359774797,1746325625121,-279.02417148,0.000248,2]
[359774798,1746325625145,-250.0,0.000248,2]
[359774799,1746325625164,-410.03,0.000249,2]
[359774800,1746325625185,-616.0,0.00025,2]
[359774801,1746325625209,-1413.56045,0.00027397,2]
[359774802,1746325625230,-500.0,0.00027397,5]
[359774803,1746325625252,-400.0,0.0003,2]
[359774804,1746325625274,-1200.0,0.00030001,2]
[359774805,1746325625295,-400.0,0.00030001,2]
[359774806,1746325625316,-300.0,0.00030002,2]
[359774807,1746325625335,-301.0,0.00030002,2]
[359774808,1746325625356,-545.0,0.00030003,2]
[359774809,1746325625377,-1867.75,0.00030003,2]
[359774810,1746325625397,-707.0,0.00030003,2]
[359774811,1746325625418,-403.0,0.00030003,2]
[359774812,1746325625439,-159.4635,0.00031103,2]
[359774813,1746325625459,-165.70975775,0.00032877,2]
[359774814,1746325625480,-197.0,0.00032877,3]
[359774815,1746325625500,-252.61073713,0.00032877,5]
[359774816,1746325625520,-403.0,0.00033003,2]
[359774817,1746325625540,-1413.56045,0.00033165,2]
[359774818,1746325625560,-247.5707132,0.00034,30]
[359774819,1746325625580,-1230.11,0.000344,7]
[359774820,1746325625601,-53.10803482,0.00034849,120]
[359774821,1746325630082,-219.51176374,0.00034849,120]
[359774822,1746325630105,-228.8334103,0.0003528,2]
[359774823,1746325630125,-500.0,0.00035605,60]
[359774824,1746325630148,-13.68836664,0.00036003,2]
[359774826,1746325649082,-389.31163336,0.00036003,2]
[359774827,1746325649109,-358.22281942,0.00036153,60]
[359774828,1746325652088,-141.77718058,0.00036153,60]
[359774829,1746325652110,-500.0,0.00036701,60]
[359774830,1746325652131,-1432.8486559,0.00037293,4]
[359774831,1746325652159,-200.0,0.00037471,120]
[359774832,1746325652183,-183.40550421,0.00037524,48]
[359774833,1746325652203,-158.59372474,0.00037524,48]
[359774834,1746325652224,-74.16454453,0.00037797,60]
[359774842,1746325752111,-2101.14593037,0.00021,2]
[359774843,1746325752132,-265.02,0.000252,2]
[359774844,1746325752152,-161.0,0.00027397,3]
[359774849,1746325764357,160.0,0.00021413,2]
[359774853,1746325803080,308.0,0.00025,2]
[359774883,1746325835037,203.57353,0.000305,120]
[359774895,1746325838375,-72.18960488,0.0003099,2]
[359774898,1746325838689,-54.99218388,0.0003099,2]
[359774899,1746325839030,201.88096,0.000305,120]
[359775276,1746325843531,-174.67826102,0.0003099,2]
[359775277,1746325843540,-202.44135279,0.00033,21]
[359775278,1746325843550,-325.51400733,0.000345,7]
[359775284,1746325846625,-469.56599267,0.000345,7]
[359775285,1746325846635,-500.0,0.00035605,60]
[359775286,1746325846645,-500.0,0.00036153,60]
[359775287,1746325846654,-500.0,0.00036701,60]
[359775288,1746325846663,-286.84745459,0.00036902,10]
[359775289,1746325846673,-173.2192937,0.00037,6]
[359775290,1746325846682,-500.0,0.00037249,60]